bitfinex-derivatives/quotes_BTCF0:USTF0_20250510
["timestamp","ask_amount","ask_price","bid_price","bid_amount"]
[1746841903781,1.42257663,102990.0,102980.0,0.1152276]
[1746841904087,1.62619525,102990.0,102970.0,0.00989254]
[1746841904289,0.77057404,102980.0,102970.0,0.05508105]
[1746841904487,0.90251616,102980.0,102970.0,0.04]
[1746841904677,0.99962816,102980.0,102970.0,0.04]
[1746841904989,0.99962816,102980.0,102970.0,0.05507802]
[1746841905176,1.16562816,102980.0,102970.0,0.05507802]
[1746841905583,1.37562816,102980.0,102970.0,0.05720056]
[1746841905780,1.16562816,102980.0,102970.0,0.01720056]
[1746841906993,0.86722034,102980.0,102970.0,0.01720056]
[1746841907688,0.87722034,102980.0,102970.0,0.01720056]
[1746841908190,0.78551616,102980.0,102970.0,0.01620056]
[1746841908485,0.1747994,102970.0,102960.0,0.25870579]
[1746841908792,0.6288994,102970.0,102960.0,0.45377745]
[1746841908992,0.6288994,102970.0,102960.0,0.55088839]
[1746841909186,0.6288994,102970.0,102960.0,0.40241724]
[1746841909594,0.6308994,102970.0,102960.0,0.58241724]
[1746841909794,0.6381794,102970.0,102960.0,0.58241724]
[1746841910687,0.6381794,102970.0,102960.0,0.56796545]
[1746841910888,0.6391794,102970.0,102960.0,0.56796545]
[1746841911790,0.6391794,102970.0,102960.0,0.56867845]
[1746841911990,0.6391794,102970.0,102960.0,0.55289287]
[1746841914588,0.5458794,102970.0,102960.0,0.88537313]
[1746841914788,0.37108,102970.0,102960.0,0.88537313]
[1746841914984,0.37108,102970.0,102960.0,1.36017313]
[1746841915196,0.37108,102970.0,102960.0,1.52617313]
[1746841917202,0.37008,102970.0,102960.0,1.52617313]
[1746841917402,0.37008,102970.0,102960.0,1.52717313]
[1746841917697,0.36808,102970.0,102960.0,1.52717283]
[1746841919202,0.53752452,102980.0,102970.0,0.1747994]
[1746841919397,0.53752452,102980.0,102970.0,0.80886714]
[1746841919792,0.53752452,102980.0,102970.0,0.90598752]
[1746841920097,0.53752452,102980.0,102970.0,1.07198752]
[1746841920494,0.53852452,102980.0,102970.0,1.07198752]
[1746841921002,0.54052452,102980.0,102970.0,1.07198752]
[1746841921403,0.53952452,102980.0,102970.0,1.07198752]
[1746841921606,0.53952452,102980.0,102970.0,1.07298752]
[1746841921904,0.36274212,102980.0,102970.0,1.07298752]
[1746841922409,0.36274212,102980.0,102970.0,1.22145867]
[1746841924207,0.36274212,102980.0,102970.0,1.22144885]
[1746841924794,0.36274212,102980.0,102970.0,1.38985667]
[1746841925200,0.53752452,102980.0,102970.0,1.38985667]
[1746841925401,0.53752452,102980.0,102970.0,1.31856085]
[1746841925805,0.53752452,102980.0,102970.0,1.30349875]
[1746841926100,0.53752452,102980.0,102970.0,1.3185564]
[1746841926510,0.53752452,102980.0,102970.0,1.2214444]
[1746841927207,0.36274212,102980.0,102970.0,1.2214444]
[1746841927409,0.36274212,102980.0,102970.0,1.29274022]
[1746841927708,0.36274212,102980.0,102970.0,1.27768257]
[1746841928007,0.36274212,102980.0,102970.0,1.29273636]
[1746841928411,0.36274212,102980.0,102970.0,1.22144054]
[1746841928709,0.53752452,102980.0,102970.0,1.22144054]
[1746841928909,0.53752452,102980.0,102970.0,1.25274054]
[1746841930702,0.56812452,102980.0,102970.0,1.25274054]
[1746841931305,0.56812452,102980.0,102970.0,1.2527353]
[1746841933012,0.56812452,102980.0,102970.0,1.10426415]
[1746841934403,0.56812452,102980.0,102970.0,1.17555997]
[1746841934921,0.56812452,102980.0,102970.0,1.10426415]
[1746841936313,0.39334212,102980.0,102970.0,1.10426415]
[1746841938408,0.39334212,102980.0,102970.0,1.10426962]
[1746841939000,0.42454212,102980.0,102970.0,1.10426962]
[1746841941311,0.45624212,102980.0,102970.0,1.10426962]
[1746841943017,0.45624212,102980.0,102970.0,1.25274077]
[1746841943723,0.45624212,102980.0,102970.0,1.25276534]
[1746841945617,0.45624212,102980.0,102970.0,1.30232959]
[1746841946411,0.45624212,102980.0,102970.0,1.23103377]
[1746841946612,0.45624212,102980.0,102970.0,1.30232959]
[1746841949129,0.45624212,102980.0,102970.0,1.30235614]
[1746841949724,0.45624212,102980.0,102970.0,1.37365196]
[1746841953418,0.45624212,102980.0,102970.0,1.30235614]
[1746841953923,0.45624212,102980.0,102970.0,1.90185357]
[1746841954323,0.45624212,102980.0,102970.0,1.97314939]
[1746841954521,0.45624212,102980.0,102970.0,1.97314886]
[1746841955828,0.45624212,102980.0,102970.0,1.90185304]
[1746841959823,0.45624212,102980.0,102970.0,1.90185266]
[1746841960622,0.45624212,102980.0,102970.0,1.54944965]
[1746841961227,0.39334212,102980.0,102970.0,1.62074547]
[1746841961426,0.43448,102990.0,102980.0,0.1747824]
[1746841961627,0.43448,102990.0,102980.0,0.88595732]
[1746841962034,0.43448,102990.0,102980.0,0.98306826]
[1746841962232,0.4272,102990.0,102980.0,1.14906826]
[1746841962426,0.6019655,102990.0,102980.0,1.14906826]
[1746841962630,0.6039655,102990.0,102980.0,1.14906826]
[1746841963233,0.6039655,102990.0,102980.0,0.98306043]
[1746841964224,0.6039655,102990.0,102980.0,1.32963788]
[1746841965428,0.6346655,102990.0,102980.0,1.32963788]
[1746841966826,0.6346655,102990.0,102980.0,1.32963235]
[1746841967027,0.6419455,102990.0,102980.0,1.32963235]
[1746841968536,0.6419455,102990.0,102980.0,1.32963127]
[1746841969035,0.46718,102990.0,102980.0,1.32963127]
[1746841971836,0.46718,102990.0,102980.0,1.13159587]
[1746841973337,0.40078,102990.0,102980.0,1.20289169]
[1746841973727,0.40078,102990.0,102980.0,1.13158895]
[1746841974127,0.40078,102990.0,102980.0,1.36888477]
[1746841974330,0.39878,102990.0,102980.0,1.36888477]
[1746841974638,0.39878,102990.0,102980.0,1.56692017]
[1746841974834,0.39878,102990.0,102980.0,1.56792017]
[1746841975025,0.39878,102990.0,102980.0,1.56791591]
[1746841975430,0.39878,102990.0,102980.0,1.56991591]
[1746841975729,0.39878,102990.0,102980.0,1.49862009]
[1746841976937,0.39878,102990.0,102980.0,1.49762009]
[1746841977238,0.39878,102990.0,102980.0,1.50061562]
[1746841977438,0.39878,102990.0,102980.0,1.62633562]
[1746841977636,0.46348,102990.0,102980.0,2.07419957]
[1746841981437,0.46348,102990.0,102980.0,1.47779357]
[1746841982042,0.46348,102990.0,102980.0,1.54908939]
[1746841982240,0.07048,102990.0,102980.0,1.90988939]
[1746841982448,0.3941,103000.0,102990.0,0.1747655]
[1746841982635,0.3941,103000.0,102990.0,0.76593033]
[1746841982834,0.4253,103000.0,102990.0,0.76593033]
[1746841983140,0.4253,103000.0,102990.0,1.02903184]
[1746841983542,0.4253,103000.0,102990.0,1.03003184]
[1746841984644,0.4253,103000.0,102990.0,1.1782706]
[1746841985237,0.4253,103000.0,102990.0,1.0122706]
[1746841985846,0.458,103000.0,102990.0,1.0122706]
[1746841989049,0.458,103000.0,102990.0,1.01226322]
[1746841990744,0.458,103000.0,102990.0,1.21029862]
[1746841990948,0.458,103000.0,102990.0,1.21030171]
[1746841991553,0.36808,103010.0,103000.0,0.1747485]
[1746841991747,0.43338,103010.0,103000.0,1.02952904]
[1746841992147,0.43338,103010.0,103000.0,1.12662113]
[1746841992647,0.43338,103010.0,103000.0,1.12661688]
[1746841992952,0.43338,103010.0,103000.0,1.12661677]
[1746841993156,0.43338,103010.0,103000.0,1.27485553]
[1746841993355,0.43338,103010.0,103000.0,1.27585553]
[1746841994955,0.46638,103010.0,103000.0,1.27585553]
[1746841996256,0.46638,103010.0,103000.0,1.27585255]
[1746841997954,0.46638,103010.0,103000.0,1.27585208]
[1746841999151,0.46638,103010.0,103000.0,2.43829208]
[1746842002763,0.62429216,103040.0,103000.0,2.6956394]
[1746842003056,0.033,103020.0,103010.0,0.6973771]
[1746842003249,0.033,103020.0,103010.0,1.12393463]
[1746842003452,0.0966,103020.0,103010.0,1.1088771]
[1746842003762,0.0966,103020.0,103010.0,1.22099894]
[1746842004064,0.0966,103020.0,103010.0,1.36359058]
[1746842004558,0.0966,103020.0,103010.0,1.29229476]
[1746842004764,0.0966,103020.0,103010.0,1.30692141]
[1746842004965,0.0966,103020.0,103010.0,1.27662141]
[1746842005461,0.0966,103020.0,103010.0,1.27762141]
[1746842006863,0.0966,103020.0,103010.0,1.27761291]
[1746842008164,0.0966,103020.0,103010.0,1.27761156]
[1746842010363,0.0966,103020.0,103010.0,0.91681156]
[1746842010659,0.4574,103020.0,103010.0,1.10621081]
[1746842010861,0.6321146,103020.0,103010.0,0.76436274]
[1746842011166,0.7981146,103020.0,103010.0,0.76436274]
[1746842011366,0.7981146,103020.0,103010.0,0.76436759]
[1746842011672,0.7981146,103020.0,103010.0,0.76436882]
[1746842011959,0.6264,103020.0,103010.0,0.76336882]
[1746842012555,0.6264,103020.0,103010.0,0.76236882]
[1746842012762,0.6294,103020.0,103010.0,0.76236882]
[1746842012965,0.9902,103020.0,103010.0,0.76236882]
[1746842013558,1.1649146,103020.0,103010.0,0.76236882]
[1746842013858,0.9902,103020.0,103010.0,0.76236882]
[1746842019464,1.1649146,103020.0,103010.0,0.76236882]
[1746842019665,0.9902,103020.0,103010.0,0.76237567]
[1746842019867,1.1649146,103020.0,103010.0,0.76237567]
[1746842020060,0.9902,103020.0,103010.0,0.76237567]
[1746842020366,0.9902,103020.0,103010.0,0.83367149]
[1746842020566,0.9902,103020.0,103010.0,0.86547149]
[1746842021068,0.9902,103020.0,103010.0,0.86547197]
[1746842025272,0.9902,103020.0,103010.0,0.79417615]
[1746842025478,0.9902,103020.0,103010.0,0.86547197]
[1746842028574,0.9902,103020.0,103010.0,0.8654699]
[1746842029075,0.9902,103020.0,103010.0,0.8984699]
[1746842030378,0.9902,103020.0,103010.0,0.89846894]
[1746842037396,0.9902,103020.0,103010.0,0.93116894]
[1746842039089,1.23621042,103020.0,103010.0,0.31865312]
[1746842039392,1.23621042,103020.0,103010.0,0.32865312]
[1746842039593,1.33328242,103020.0,103010.0,0.32865312]
[1746842042396,1.33328242,103020.0,103010.0,0.32868638]
[1746842044199,1.33328242,103020.0,103010.0,0.32868622]
[1746842047402,1.2619866,103020.0,103010.0,0.32868622]
[1746842047597,1.23621042,103020.0,103010.0,0.32868622]
[1746842047798,1.23621042,103020.0,103010.0,0.32868425]
[1746842048405,1.1649146,103020.0,103010.0,0.76148007]
[1746842048600,0.172,103020.0,103010.0,0.79378007]
[1746842049002,0.3467146,103020.0,103010.0,0.79378007]
[1746842049192,0.1807146,103020.0,103010.0,0.79378007]
[1746842050102,0.1777146,103020.0,103010.0,0.79378007]
[1746842050304,0.1767146,103020.0,103010.0,0.79378007]
[1746842050504,0.2079146,103020.0,103010.0,0.79378007]
[1746842052894,0.2079146,103020.0,103010.0,0.72248425]
[1746842053094,0.2079146,103020.0,103010.0,0.79378007]
[1746842053309,0.2079146,103020.0,103010.0,0.79377758]
[1746842055001,0.1767146,103020.0,103010.0,0.79377758]
[1746842056210,0.002,103020.0,103010.0,0.79377758]
[1746842056803,0.002,103020.0,103010.0,0.79377163]
[1746842057309,0.001,103020.0,103010.0,0.79477163]
[1746842057510,0.7711228,103030.0,103020.0,0.1747146]
[1746842057713,0.7711228,103030.0,103020.0,0.72825038]
[1746842058112,0.9371228,103030.0,103020.0,0.82532362]
[1746842058311,0.9371228,103030.0,103020.0,0.83994206]
[1746842058710,0.9381228,103030.0,103020.0,0.83994122]
[1746842060118,0.9391228,103030.0,103020.0,0.83994122]
[1746842062217,0.9391228,103030.0,103020.0,0.83994061]
[1746842063611,0.9318428,103030.0,103020.0,0.83994061]
[1746842068520,0.9391128,103030.0,103020.0,0.83994061]
[1746842068921,0.5783128,103030.0,103020.0,0.83994061]
[1746842069118,0.9391128,103030.0,103020.0,0.83994061]
[1746842078616,0.9391128,103030.0,103020.0,0.83982439]
[1746842081132,0.9391128,103030.0,103020.0,0.80712439]
[1746842081624,1.21040862,103030.0,103020.0,0.45572439]
[1746842085336,1.21040862,103030.0,103020.0,0.48742439]
[1746842087133,1.21040862,103030.0,103020.0,0.48742041]
[1746842089238,1.1391128,103030.0,103020.0,0.48742041]
[1746842089428,1.1391128,103030.0,103020.0,0.48742095]
[1746842090034,1.21040862,103030.0,103020.0,0.48742095]
[1746842091135,1.04440862,103030.0,103020.0,0.48742095]
[1746842093340,0.9731128,103030.0,103020.0,0.48742095]
[1746842094641,0.9731128,103030.0,103020.0,0.81742095]
[1746842094835,0.9731128,103030.0,103020.0,0.48742095]
[1746842096743,0.9731128,103030.0,103020.0,0.48742186]
[1746842098142,0.9731128,103030.0,103020.0,0.47280342]
[1746842100246,0.7731128,103030.0,103020.0,0.47280342]
[1746842102956,0.7731128,103030.0,103020.0,0.48725435]
[1746842106047,0.7405128,103030.0,103020.0,0.67175017]
[1746842106244,0.7405128,103030.0,103020.0,0.90175017]
[1746842107355,0.3797128,103030.0,103020.0,0.90175017]
[1746842107543,0.7405128,103030.0,103020.0,0.90175017]
[1746842109650,0.1839796,103030.0,103020.0,0.97304599]
[1746842109843,0.00927,103030.0,103020.0,0.97304599]
[1746842110042,0.1839676,103030.0,103020.0,1.09512599]
[1746842110539,0.00927,103030.0,103020.0,1.09512599]
[1746842111143,0.1839676,103030.0,103020.0,1.26112599]
[1746842114256,0.1839676,103030.0,103020.0,1.09512599]
[1746842115760,0.1839676,103030.0,103020.0,1.095113]
[1746842116247,0.1839676,103030.0,103020.0,1.261113]
[1746842117259,0.1839676,103030.0,103020.0,1.095113]
[1746842117450,0.1839676,103030.0,103020.0,1.0951111]
[1746842119259,0.1839676,103030.0,103020.0,1.09510975]
[1746842119456,0.00927,103030.0,103020.0,1.09510975]
[1746842119754,0.00927,103030.0,103020.0,1.45590975]
[1746842120160,0.00927,103030.0,103020.0,1.62190975]
[1746842121052,0.00927,103030.0,103020.0,1.62190266]
[1746842121856,0.00827,103030.0,103020.0,1.62290266]
[1746842122661,0.00727,103030.0,103020.0,1.62390266]
[1746842124560,0.00727,103030.0,103020.0,1.62388936]
[1746842129964,0.00727,103030.0,103020.0,1.26308936]
[1746842130166,0.00727,103030.0,103020.0,1.62388936]
[1746842130365,0.00727,103030.0,103020.0,1.26308936]
[1746842130567,0.00727,103030.0,103020.0,1.62388936]
[1746842132168,0.3971408,103050.0,103040.0,0.1746807]
[1746842132365,0.4587408,103050.0,103040.0,0.93619129]
[1746842132664,0.4587408,103050.0,103040.0,1.03259129]
[1746842132852,0.4587408,103050.0,103040.0,1.12963627]
[1746842133255,0.4617408,103050.0,103040.0,1.12963627]
[1746842133965,0.4587408,103050.0,103040.0,1.05834045]
[1746842134168,0.4597408,103050.0,103040.0,1.05834045]
[1746842134364,0.4627408,103050.0,103040.0,1.05834045]
[1746842134968,0.1019408,103050.0,103040.0,1.05834045]
[1746842135172,0.1019408,103050.0,103040.0,1.02734045]
[1746842135173,0.4607408,103050.0,103040.0,1.02734045]
[1746842136970,0.4607408,103050.0,103040.0,1.02733288]
[1746842137865,0.4607408,103050.0,103040.0,0.95603706]
[1746842138066,0.4607408,103050.0,103040.0,1.02733288]
[1746842138266,0.4607408,103050.0,103040.0,0.95603706]
[1746842138469,0.4607408,103050.0,103040.0,1.02733288]
[1746842140472,0.4607408,103050.0,103040.0,1.0273384]
[1746842141873,0.4607408,103050.0,103040.0,1.09863422]
[1746842142374,0.4607408,103050.0,103040.0,1.0273384]
[1746842148378,0.4607408,103050.0,103040.0,0.95604258]
[1746842148562,0.4607408,103050.0,103040.0,1.0273384]
[1746842149371,0.4607408,103050.0,103040.0,1.02735675]
[1746842151072,0.4607408,103050.0,103040.0,1.02734294]
[1746842152373,0.4597408,103050.0,103040.0,1.02734294]
[1746842152571,0.0989408,103050.0,103040.0,1.02734294]
[1746842153285,0.0979408,103050.0,103040.0,1.02834294]
[1746842154576,0.0979408,103050.0,103040.0,1.02834364]
[1746842155476,0.0979408,103050.0,103040.0,1.09963946]
[1746842155668,0.0979408,103050.0,103040.0,1.13143946]
[1746842156368,0.0979408,103050.0,103040.0,1.06014361]
[1746842161278,0.0979408,103050.0,103040.0,1.06014836]
[1746842162669,0.0675408,103050.0,103040.0,1.06014836]
[1746842164679,0.0675408,103050.0,103040.0,1.06015185]
[1746842166379,0.0675408,103050.0,103040.0,1.06015166]
[1746842168186,0.0675408,103050.0,103040.0,1.06015155]
[1746842169992,0.0675408,103050.0,103040.0,1.0601545]
[1746842173787,0.0675408,103050.0,103040.0,1.13145032]
[1746842174388,0.0675408,103050.0,103040.0,1.0452215]
[1746842174687,0.0675408,103050.0,103040.0,1.06015949]
[1746842176390,0.0675408,103050.0,103040.0,1.0452215]
[1746842176594,0.0675408,103050.0,103040.0,1.06015953]
[1746842178196,0.0675408,103050.0,103040.0,1.0601591]
[1746842178395,0.0675408,103050.0,103040.0,1.06015921]
[1746842181094,0.0675408,103050.0,103040.0,1.06014779]
[1746842185199,0.0059408,103050.0,103040.0,1.13144361]
[1746842185404,0.0059408,103050.0,103040.0,1.49224361]
[1746842186509,0.0059408,103050.0,103040.0,1.49223243]
[1746842188300,0.0059408,103050.0,103040.0,1.49222752]
[1746842191012,0.0132108,103050.0,103040.0,1.49222752]
[1746842191208,0.0132108,103050.0,103040.0,1.64046628]
[1746842194914,0.0132108,103050.0,103040.0,1.49222752]
[1746842195316,0.0132108,103050.0,103040.0,1.49221753]
[1746842197319,0.0132108,103050.0,103040.0,1.56351335]
[1746842197523,0.0132108,103050.0,103040.0,1.49221753]
[1746842199114,0.49504346,103070.0,103040.0,1.43249915]
[1746842199320,0.49504346,103070.0,103060.0,0.31723844]
[1746842199321,0.56054346,103070.0,103060.0,0.31723844]
[1746842199516,0.19974346,103070.0,103060.0,0.95553865]
[1746842199715,0.19974346,103070.0,103060.0,1.04933865]
[1746842200023,0.19974346,103070.0,103060.0,1.14636479]
[1746842200210,0.36574346,103070.0,103060.0,1.14636479]
[1746842201120,0.36874346,103070.0,103060.0,1.14636479]
[1746842201522,0.37174346,103070.0,103060.0,1.15872593]
[1746842202022,0.36874346,103070.0,103060.0,1.15872593]
[1746842202210,0.36974346,103070.0,103060.0,1.15872593]
[1746842202415,0.36974346,103070.0,103060.0,1.15883364]
[1746842202618,0.72754346,103070.0,103060.0,1.15883364]
[1746842202818,0.36774346,103070.0,103060.0,1.15883364]
[1746842203425,0.72854346,103070.0,103060.0,1.15883364]
[1746842204228,0.26874042,103070.0,103060.0,1.15883251]
[1746842205324,0.62954042,103070.0,103060.0,1.15883251]
[1746842205527,0.80417022,103070.0,103060.0,1.05713669]
[1746842206425,0.44337022,103070.0,103060.0,1.05713669]
[1746842206826,0.44337022,103070.0,103060.0,1.12843251]
[1746842207028,0.26874042,103070.0,103060.0,1.12843251]
[1746842209428,0.26874042,103070.0,103060.0,1.11342572]
[1746842209629,0.26874042,103070.0,103060.0,1.1284323]
[1746842211228,0.26874042,103070.0,103060.0,1.12843423]
[1746842212427,0.62954042,103070.0,103060.0,1.12843584]
[1746842212929,0.62954042,103070.0,103060.0,1.11342572]
[1746842213130,0.26874042,103070.0,103060.0,1.12843581]
[1746842215618,0.62954042,103070.0,103060.0,1.12843581]
[1746842215823,0.26874042,103070.0,103060.0,1.12843581]
[1746842217332,0.26874042,103070.0,103060.0,1.16123581]
[1746842218833,0.44337022,103070.0,103060.0,1.08993999]
[1746842219034,0.44337022,103070.0,103060.0,1.12843581]
[1746842219234,0.26874042,103070.0,103060.0,1.12843581]
[1746842220136,0.26874042,103070.0,103060.0,1.12844558]
[1746842220733,0.44337022,103070.0,103060.0,1.12844558]
[1746842221235,0.27737022,103070.0,103060.0,1.12844558]
[1746842221441,0.10274042,103070.0,103060.0,1.12844558]
[1746842221735,0.10274042,103070.0,103060.0,1.48924558]
[1746842222237,0.26874042,103070.0,103060.0,1.48924558]
[1746842222935,0.26874042,103070.0,103060.0,1.34665394]
[1746842223136,0.26874042,103070.0,103060.0,1.48924887]
[1746842223336,0.26874042,103070.0,103060.0,1.51924887]
[1746842226229,0.23544042,103070.0,103060.0,1.51924887]
[1746842226938,0.26814042,103070.0,103060.0,1.51924887]
[1746842230941,0.23544042,103070.0,103060.0,1.51924887]
[1746842231746,0.23544042,103070.0,103060.0,1.50422572]
[1746842232041,0.23544042,103070.0,103060.0,1.51926334]
[1746842234143,0.06944042,103070.0,103060.0,1.51926334]
[1746842235140,0.23544042,103070.0,103060.0,1.51926334]
[1746842236147,0.06944042,103070.0,103060.0,1.51926334]
[1746842237239,0.23544042,103070.0,103060.0,1.51926334]
[1746842237852,0.24271042,103070.0,103060.0,1.51926334]
[1746842238254,0.24271042,103070.0,103060.0,1.50422572]
[1746842238452,0.24271042,103070.0,103060.0,1.51926193]
[1746842238641,0.24271042,103070.0,103060.0,1.15846193]
[1746842238952,0.24271042,103070.0,103060.0,1.51926193]
[1746842239152,0.07671042,103070.0,103060.0,1.51926193]
[1746842239455,0.07671042,103070.0,103060.0,1.50422572]
[1746842240253,0.24271042,103070.0,103060.0,1.51926198]
[1746842240551,0.24271042,103070.0,103060.0,1.51926205]
[1746842240738,0.24271042,103070.0,103060.0,1.50422572]
[1746842240942,0.24271042,103070.0,103060.0,1.51926205]
[1746842241144,0.07671042,103070.0,103060.0,1.51926205]
[1746842241349,0.07671042,103070.0,103060.0,1.51926224]
[1746842242159,0.24271042,103070.0,103060.0,1.51926224]
[1746842243447,0.27471042,103070.0,103060.0,1.51926236]
[1746842244360,0.10871042,103070.0,103060.0,1.51926236]
[1746842244961,0.10871042,103070.0,103060.0,1.51926256]
[1746842246765,0.10871042,103070.0,103060.0,1.51926298]
[1746842247363,0.27471042,103070.0,103060.0,1.51926298]
[1746842250164,0.10871042,103070.0,103060.0,1.51926298]
[1746842250366,0.10871042,103070.0,103060.0,1.51926412]
[1746842251059,0.27471042,103070.0,103060.0,1.51926412]
[1746842255266,0.10871042,103070.0,103060.0,1.51926412]
[1746842257464,0.10871042,103070.0,103060.0,1.51926233]
[1746842264370,0.10871042,103070.0,103060.0,1.51926402]
[1746842266172,0.10871042,103070.0,103060.0,1.51926341]
[1746842271477,0.07671042,103070.0,103060.0,1.51926495]
[1746842272177,0.24271042,103070.0,103060.0,1.51926495]
[1746842272768,0.41734022,103070.0,103060.0,1.51926495]
[1746842273075,0.25134022,103070.0,103060.0,1.51926495]
[1746842273276,0.25134022,103070.0,103060.0,1.5192652]
[1746842280377,0.25134022,103070.0,103060.0,1.51926765]
[1746842280891,0.25134022,103070.0,103060.0,1.27586765]
[1746842281090,0.41734022,103070.0,103060.0,1.44689183]
[1746842281387,0.45014022,103070.0,103060.0,1.44689183]
[1746842281983,0.45014022,103070.0,103060.0,1.08609185]
[1746842282284,0.45014022,103070.0,103060.0,1.44689185]
[1746842282497,0.45014022,103070.0,103060.0,1.51818767]
[1746842284189,0.45014022,103070.0,103060.0,1.15738767]
[1746842284492,0.45014022,103070.0,103060.0,1.51818767]
[1746842292297,0.28414022,103070.0,103060.0,1.51818767]
[1746842293098,0.45014022,103070.0,103060.0,1.51818767]
[1746842298202,0.28414022,103070.0,103060.0,1.51818767]
[1746842299392,0.25134022,103070.0,103060.0,1.51818767]
[1746842300096,0.41734022,103070.0,103060.0,1.51818767]
[1746842300902,0.41734022,103070.0,103060.0,1.51817985]
[1746842301104,0.25134022,103070.0,103060.0,1.51817985]
[1746842301297,0.25134022,103070.0,103060.0,1.51817951]
[1746842303102,0.41734022,103070.0,103060.0,1.51817951]
[1746842303702,0.41734022,103070.0,103060.0,1.44688369]
[1746842304805,0.41734022,103070.0,103060.0,1.44688511]
[1746842308996,0.44914022,103070.0,103060.0,1.44688511]
[1746842310106,0.28314022,103070.0,103060.0,1.44688511]
[1746842310497,0.28314022,103070.0,103060.0,1.51818093]
[1746842310699,0.25134022,103070.0,103060.0,1.51818093]
[1746842311308,0.25134022,103070.0,103060.0,1.44688511]
[1746842312014,0.25134022,103070.0,103060.0,1.51818093]
[1746842312195,0.41734022,103070.0,103060.0,1.51818093]
[1746842313112,0.25134022,103070.0,103060.0,1.51818093]
[1746842313711,0.25134022,103070.0,103060.0,1.44688511]
[1746842314213,0.41734022,103070.0,103060.0,1.44688511]
[1746842316111,0.25134022,103070.0,103060.0,1.44688511]
[1746842317117,0.41734022,103070.0,103060.0,1.44688511]
[1746842317410,0.41734022,103070.0,103060.0,1.44688535]
[1746842318112,0.25134022,103070.0,103060.0,1.44688535]
[1746842320021,0.25134022,103070.0,103060.0,1.51818117]
[1746842320913,0.25134022,103070.0,103060.0,1.51818144]
[1746842321310,0.25134022,103070.0,103060.0,1.44688562]
[1746842321504,0.28264022,103070.0,103060.0,1.44688562]
[1746842322019,0.18584022,103070.0,103060.0,1.51818144]
[1746842322313,0.01121042,103070.0,103060.0,1.95027726]
[1746842322514,0.01121042,103070.0,103060.0,1.87898144]
[1746842322706,0.01121042,103070.0,103060.0,1.87897076]
[1746842324014,0.00921042,103070.0,103060.0,1.88097076]
[1746842324217,0.00921042,103070.0,103060.0,1.88297076]
[1746842324718,0.00921042,103070.0,103060.0,1.95426658]
[1746842325111,0.00921042,103070.0,103060.0,1.88297076]
[1746842325517,0.00921042,103070.0,103060.0,1.95426658]
[1746842325711,0.00921042,103070.0,103060.0,1.88297076]
[1746842325909,0.00921042,103070.0,103060.0,1.95426658]
[1746842326416,0.00921042,103070.0,103060.0,1.95425866]
[1746842326719,0.00921042,103070.0,103060.0,1.7403712]
[1746842326903,0.00921042,103070.0,103060.0,1.88296284]
[1746842332219,0.00921042,103070.0,103060.0,1.88295576]
[1746842333508,0.00921042,103070.0,103060.0,2.03119452]
[1746842333919,0.00921042,103070.0,103060.0,3.19287452]
[1746842335510,0.00921042,103070.0,103060.0,3.19287192]
[1746842337322,0.00921042,103070.0,103060.0,3.19287107]
[1746842341116,0.17521042,103070.0,103060.0,3.19287107]
[1746842342129,0.17521042,103070.0,103060.0,3.19287085]
[1746842343525,0.20721042,103070.0,103060.0,3.19287085]
[1746842345825,0.23751042,103070.0,103060.0,3.19287233]
[1746842351326,0.23751042,103070.0,103060.0,3.17786448]
[1746842351526,0.23751042,103070.0,103060.0,3.19288504]
[1746842361742,0.23751042,103070.0,103060.0,2.7779734]
[1746842361933,0.41214022,103070.0,103060.0,2.2111266]
[1746842362244,0.82294022,103070.0,103060.0,2.30558922]
[1746842362443,0.85514022,103070.0,103060.0,2.30558922]
[1746842363038,0.80514022,103070.0,103060.0,2.30559588]
[1746842363847,0.80514022,103070.0,103060.0,2.23430006]
[1746842364235,0.80514022,103070.0,103060.0,2.23429554]
[1746842364444,0.80514022,103070.0,103060.0,1.81832874]
[1746842364741,1.32346404,103070.0,103060.0,0.2612876]
[1746842364930,1.52346404,103070.0,103060.0,0.16426146]
[1746842365137,1.64402404,103070.0,103060.0,0.16426146]
[1746842365644,1.64402404,103070.0,103060.0,0.16426428]
[1746842365838,1.64602404,103070.0,103060.0,0.16326428]
[1746842366039,1.64602404,103070.0,103060.0,0.16325121]
[1746842366432,1.64502404,103070.0,103060.0,0.14823876]
[1746842366636,1.64802404,103070.0,103060.0,0.14823876]
[1746842367244,1.64702404,103070.0,103060.0,0.14823876]
[1746842367447,1.65002404,103070.0,103060.0,0.16323641]
[1746842367753,0.1746468,103060.0,103050.0,0.3390489]
[1746842368046,0.72264262,103060.0,103050.0,0.45107196]
[1746842368246,0.88864262,103060.0,103050.0,0.45107196]
[1746842369137,0.88964262,103060.0,103050.0,0.45107196]
[1746842369337,0.89064262,103060.0,103050.0,0.45107196]
[1746842369845,0.89064262,103060.0,103050.0,0.23274306]
[1746842370145,0.89064262,103060.0,103050.0,0.31274306]
[1746842372138,0.89791262,103060.0,103050.0,0.31274306]
[1746842373642,0.89791262,103060.0,103050.0,0.31272238]
[1746842375548,0.89791262,103060.0,103050.0,0.31272036]
[1746842375848,0.89791262,103060.0,103050.0,0.23272089]
[1746842376844,1.06624444,103060.0,103050.0,0.09702614]
[1746842377044,0.1746807,103040.0,103030.0,1.31645564]
[1746842377249,0.60677652,103040.0,103030.0,0.52815017]
[1746842377437,0.70007652,103040.0,103030.0,0.70284777]
[1746842377641,0.6287807,103040.0,103030.0,0.79990351]
[1746842377944,0.6287807,103040.0,103030.0,0.83270454]
[1746842378142,0.7947807,103040.0,103030.0,0.83270454]
[1746842378344,0.7947807,103040.0,103030.0,0.84373452]
[1746842378737,0.7947807,103040.0,103030.0,0.84573452]
[1746842378942,0.7947807,103040.0,103030.0,0.84773452]
[1746842379450,0.7947807,103040.0,103030.0,0.83670454]
[1746842382251,0.7947807,103040.0,103030.0,0.90800036]
[1746842382756,0.4339807,103040.0,103030.0,0.90800036]
[1746842382947,0.4339807,103040.0,103030.0,0.83670454]
[1746842384955,0.4339807,103040.0,103030.0,0.86869941]
[1746842385764,0.50527652,103040.0,103030.0,0.74817941]
[1746842385948,0.50527652,103040.0,103030.0,0.86873941]
[1746842386960,0.50527652,103040.0,103030.0,0.86874508]
[1746842386961,0.4339807,103040.0,103030.0,0.86874508]
[1746842388759,0.7947807,103040.0,103030.0,0.86874508]
[1746842389157,0.7947807,103040.0,103030.0,0.83674508]
[1746842389357,0.86607652,103040.0,103030.0,0.83674508]
[1746842391277,0.86607652,103040.0,103030.0,0.83528944]
[1746842392157,0.86607652,103040.0,103030.0,0.83328944]
[1746842393371,0.86607652,103040.0,103030.0,0.83228944]
[1746842394467,0.86607652,103040.0,103030.0,0.83233368]
[1746842396469,0.86607652,103040.0,103030.0,0.83233962]
[1746842397063,0.50527652,103040.0,103030.0,0.83233962]
[1746842397262,0.86607652,103040.0,103030.0,0.83233962]
[1746842397465,0.86607652,103040.0,103030.0,0.65764202]
[1746842398165,0.86607652,103040.0,103030.0,0.83233962]